[Event "Titled Tuesday Blitz August 09 Late 2022"]
[White "Salem, A.R. Saleh"]
[Black "Fedotov, Nikita"]
[WhiteFideId "9301348"]
[BlackFideId "24161446"]
[WhiteElo "2674"]
[BlackElo "2102"]
[Result "1-0"]
[Round "01"]
[TimeControl "180+1"]
[Date "2022.08.09"]
[WhiteClock "0:00:31"]
[BlackClock "0:00:16"]

1. d4 {[%clk 0:03:00]}  Nf6 {[%clk 0:02:47]} 2. c4 {[%clk 0:03:00]}  c5 {[%clk 0:02:47]} 3. d5 {[%clk 0:03:00]}  b5 {[%clk 0:02:47]} 4. cxb5 {[%clk 0:02:59]}  a6 {[%clk 0:02:48]} 5. e3 {[%clk 0:02:59]}  e6 {[%clk 0:02:47]} 6. dxe6 {[%clk 0:02:57]}  fxe6 {[%clk 0:02:47]} 7. Nf3 {[%clk 0:02:57]}  d5 {[%clk 0:02:46]} 8. bxa6 {[%clk 0:02:50]}  Bd6 {[%clk 0:02:41]} 9. Bb5+ {[%clk 0:02:47]}  Nbd7 {[%clk 0:02:42]} 10. O-O {[%clk 0:02:44]}  Bxa6 {[%clk 0:02:39]} 11. Nc3 {[%clk 0:02:44]}  O-O {[%clk 0:02:39]} 12. Qe2 {[%clk 0:02:42]}  Qb6 {[%clk 0:02:33]} 13. Bxa6 {[%clk 0:02:42]}  Qxa6 {[%clk 0:02:33]} 14. Qxa6 {[%clk 0:02:28]}  Rxa6 {[%clk 0:02:32]} 15. b3 {[%clk 0:02:15]}  Ne5 {[%clk 0:02:32]} 16. Na4 {[%clk 0:02:02]}  Nxf3+ {[%clk 0:02:23]} 17. gxf3 {[%clk 0:02:03]}  Be5 {[%clk 0:02:21]} 18. Rb1 {[%clk 0:02:01]}  c4 {[%clk 0:02:16]} 19. Rd1 {[%clk 0:01:40]}  Rb8 {[%clk 0:02:14]} 20. Bd2 {[%clk 0:01:28]}  Nd7 {[%clk 0:02:04]} 21. Rdc1 {[%clk 0:01:20]}  g5 {[%clk 0:01:53]} 22. h3 {[%clk 0:01:19]}  h6 {[%clk 0:01:53]} 23. Kf1 {[%clk 0:01:20]}  Kf7 {[%clk 0:01:53]} 24. Ke2 {[%clk 0:01:20]}  Nb6 {[%clk 0:01:44]} 25. Nxb6 {[%clk 0:00:58]}  Rbxb6 {[%clk 0:01:40]} 26. bxc4 {[%clk 0:00:50]}  Rxb1 {[%clk 0:01:34]} 27. Rxb1 {[%clk 0:00:51]}  dxc4 {[%clk 0:01:33]} 28. Rc1 {[%clk 0:00:52]}  c3 {[%clk 0:01:19]} 29. Bxc3 {[%clk 0:00:51]}  Bxc3 {[%clk 0:01:19]} 30. Rxc3 {[%clk 0:00:50]}  Rxa2+ {[%clk 0:01:19]} 31. Kf1 {[%clk 0:00:51]}  Kf6 {[%clk 0:01:17]} 32. Rc4 {[%clk 0:00:50]}  h5 {[%clk 0:00:57]} 33. Kg2 {[%clk 0:00:50]}  Ra1 {[%clk 0:00:55]} 34. f4 {[%clk 0:00:47]}  Ra5 {[%clk 0:00:49]} 35. Kg3 {[%clk 0:00:44]}  Ra2 {[%clk 0:00:45]} 36. Re4 {[%clk 0:00:41]}  gxf4+ {[%clk 0:00:34]} 37. Rxf4+ {[%clk 0:00:41]}  Kg5 {[%clk 0:00:32]} 38. Re4 {[%clk 0:00:41]}  Kf5 {[%clk 0:00:30]} 39. Rf4+ {[%clk 0:00:42]}  Kg5 {[%clk 0:00:30]} 40. h4+ {[%clk 0:00:43]}  Kg6 {[%clk 0:00:31]} 41. Kf3 {[%clk 0:00:43]}  Ra1 {[%clk 0:00:29]} 42. Ke4 {[%clk 0:00:43]}  Ra5 {[%clk 0:00:27]} 43. Rf8 {[%clk 0:00:43]}  Ra4+ {[%clk 0:00:24]} 44. Ke5 {[%clk 0:00:43]}  Rxh4 {[%clk 0:00:23]} 45. f4 {[%clk 0:00:43]}  Rh3 {[%clk 0:00:22]} 46. e4 {[%clk 0:00:43]}  h4 {[%clk 0:00:20]} 47. Kxe6 {[%clk 0:00:42]}  Re3 {[%clk 0:00:19]} 48. e5 {[%clk 0:00:40]}  Kg7 {[%clk 0:00:18]} 49. Rf7+ {[%clk 0:00:39]}  Kg8 {[%clk 0:00:17]} 50. Rf5 {[%clk 0:00:36]}  h3 {[%clk 0:00:17]} 51. Rh5 {[%clk 0:00:34]}  Kg7 {[%clk 0:00:17]} 52. f5 {[%clk 0:00:35]}  Rf3 {[%clk 0:00:17]} 53. Rh4 {[%clk 0:00:34]}  Ra3 {[%clk 0:00:16]} 54. f6+ {[%clk 0:00:31]}  Kf8 {[%clk 0:00:16]} 55. Rh8# {[%clk 0:00:31]} 1-0


[Site "https://www.chess.com"]

[Event "Titled Tuesday Blitz August 09 Late 2022"]
[White "Semenenko, Dmytry"]
[Black "Izoria, Zviad"]
[WhiteFideId "14118645"]
[BlackFideId "13601733"]
[WhiteElo "2113"]
[BlackElo "2626"]
[Result "0-1"]
[Round "01"]
[TimeControl "180+1"]
[Date "2022.08.09"]
[WhiteClock "0:01:56"]
[BlackClock "0:01:21"]

1. Nf3 {[%clk 0:03:00]}  g6 {[%clk 0:02:58]} 2. c4 {[%clk 0:03:00]}  Bg7 {[%clk 0:02:57]} 3. d4 {[%clk 0:03:00]}  c5 {[%clk 0:02:56]} 4. e3 {[%clk 0:03:00]}  Nf6 {[%clk 0:02:55]} 5. Nc3 {[%clk 0:03:00]}  O-O {[%clk 0:02:54]} 6. Be2 {[%clk 0:03:00]}  cxd4 {[%clk 0:02:55]} 7. exd4 {[%clk 0:03:00]}  d5 {[%clk 0:02:56]} 8. c5 {[%clk 0:03:00]}  Ne4 {[%clk 0:02:53]} 9. O-O {[%clk 0:02:57]}  b6 {[%clk 0:02:50]} 10. cxb6 {[%clk 0:02:55]}  Nxc3 {[%clk 0:02:48]} 11. bxc3 {[%clk 0:02:55]}  axb6 {[%clk 0:02:49]} 12. Qb3 {[%clk 0:02:54]}  Ba6 {[%clk 0:02:40]} 13. Bxa6 {[%clk 0:02:52]}  Rxa6 {[%clk 0:02:41]} 14. Bf4 {[%clk 0:02:49]}  e6 {[%clk 0:02:38]} 15. Rab1 {[%clk 0:02:46]}  Nc6 {[%clk 0:02:32]} 16. Qb5 {[%clk 0:02:45]}  Qa8 {[%clk 0:02:31]} 17. a4 {[%clk 0:02:38]}  Rc8 {[%clk 0:02:29]} 18. Rfc1 {[%clk 0:02:32]}  h6 {[%clk 0:02:08]} 19. Bd6 {[%clk 0:02:25]}  Rxa4 {[%clk 0:02:00]} 20. Qxb6 {[%clk 0:02:24]}  Qa6 {[%clk 0:02:00]} 21. Qxa6 {[%clk 0:02:16]}  Rxa6 {[%clk 0:02:01]} 22. Ra1 {[%clk 0:02:16]}  Nxd4 {[%clk 0:01:43]} 23. Nxd4 {[%clk 0:02:03]}  Rxd6 {[%clk 0:01:42]} 24. Nb5 {[%clk 0:02:01]}  Rb6 {[%clk 0:01:39]} 25. Ra5 {[%clk 0:01:56]}  Kh7 {[%clk 0:01:26]} 26. h3 {[%clk 0:01:56]}  Rc5 {[%clk 0:01:23]} 27. Rb1 {[%clk 0:01:56]}  Bxc3 {[%clk 0:01:21]} 28. Nxc3 {[%clk 0:01:56]}  Rxb1+ {[%clk 0:01:20]} 29. Nxb1 {[%clk 0:01:56]}  Rxa5 {[%clk 0:01:21]} 0-1


[Site "https://www.chess.com"]

[Event "Titled Tuesday Blitz August 09 Late 2022"]
[White "Suder, Jakub"]
[Black "Andreikin, Dmitry"]
[WhiteFideId "1195310"]
[BlackFideId "4158814"]
[WhiteElo "2095"]
[BlackElo "2736"]
[Result "0-1"]
[Round "01"]
[TimeControl "180+1"]
[Date "2022.08.09"]
[WhiteClock "0:01:10"]
[BlackClock "0:00:48"]

1. d4 {[%clk 0:02:57]}  Nf6 {[%clk 0:02:59]} 2. c4 {[%clk 0:02:57]}  g6 {[%clk 0:02:59]} 3. Nc3 {[%clk 0:02:57]}  Bg7 {[%clk 0:02:59]} 4. e4 {[%clk 0:02:58]}  O-O {[%clk 0:03:00]} 5. Be2 {[%clk 0:02:57]}  d6 {[%clk 0:02:59]} 6. Nf3 {[%clk 0:02:57]}  e5 {[%clk 0:02:57]} 7. O-O {[%clk 0:02:57]}  Nc6 {[%clk 0:02:57]} 8. d5 {[%clk 0:02:57]}  Ne7 {[%clk 0:02:57]} 9. Ne1 {[%clk 0:02:58]}  a5 {[%clk 0:02:55]} 10. Be3 {[%clk 0:02:57]}  Nd7 {[%clk 0:02:55]} 11. Nd3 {[%clk 0:02:56]}  f5 {[%clk 0:02:54]} 12. f3 {[%clk 0:02:56]}  f4 {[%clk 0:02:54]} 13. Bf2 {[%clk 0:02:57]}  b6 {[%clk 0:02:49]} 14. a3 {[%clk 0:02:57]}  Ba6 {[%clk 0:02:48]} 15. Nb5 {[%clk 0:02:46]}  g5 {[%clk 0:02:48]} 16. b4 {[%clk 0:02:45]}  h5 {[%clk 0:02:47]} 17. Kh1 {[%clk 0:02:43]}  Nf6 {[%clk 0:02:45]} 18. Bg1 {[%clk 0:02:41]}  g4 {[%clk 0:02:40]} 19. bxa5 {[%clk 0:02:41]}  bxa5 {[%clk 0:02:39]} 20. a4 {[%clk 0:02:40]}  g3 {[%clk 0:02:30]} 21. c5 {[%clk 0:02:37]}  gxh2 {[%clk 0:02:23]} 22. Bxh2 {[%clk 0:02:34]}  h4 {[%clk 0:02:23]} 23. cxd6 {[%clk 0:02:28]}  cxd6 {[%clk 0:02:24]} 24. Rc1 {[%clk 0:02:28]}  Bxb5 {[%clk 0:02:07]} 25. axb5 {[%clk 0:02:28]}  Nh5 {[%clk 0:02:08]} 26. Nf2 {[%clk 0:02:26]}  a4 {[%clk 0:01:59]} 27. Nh3 {[%clk 0:02:23]}  Qb6 {[%clk 0:01:58]} 28. Qd2 {[%clk 0:02:13]}  a3 {[%clk 0:01:56]} 29. Ra1 {[%clk 0:02:13]}  Rfc8 {[%clk 0:01:50]} 30. Rfc1 {[%clk 0:02:13]}  Ng3+ {[%clk 0:01:38]} 31. Bxg3 {[%clk 0:02:12]}  hxg3 {[%clk 0:01:39]} 32. Rxc8+ {[%clk 0:02:10]}  Nxc8 {[%clk 0:01:40]} 33. Qc3 {[%clk 0:02:06]}  Qc5 {[%clk 0:01:35]} 34. Qxc5 {[%clk 0:01:59]}  dxc5 {[%clk 0:01:36]} 35. Ng5 {[%clk 0:01:52]}  Bf8 {[%clk 0:01:35]} 36. Ne6 {[%clk 0:01:52]}  Bd6 {[%clk 0:01:34]} 37. Kg1 {[%clk 0:01:47]}  Nb6 {[%clk 0:01:34]} 38. Kf1 {[%clk 0:01:48]}  c4 {[%clk 0:01:28]} 39. Ke1 {[%clk 0:01:48]}  a2 {[%clk 0:01:17]} 40. Kd1 {[%clk 0:01:46]}  Ra3 {[%clk 0:01:12]} 41. Kc2 {[%clk 0:01:18]}  Bb4 {[%clk 0:01:12]} 42. d6 {[%clk 0:01:17]}  Bxd6 {[%clk 0:01:01]} 43. Kb2 {[%clk 0:01:13]}  Na4+ {[%clk 0:00:59]} 44. Kc2 {[%clk 0:01:12]}  Rc3+ {[%clk 0:00:58]} 45. Kd2 {[%clk 0:01:12]}  Bb4 {[%clk 0:00:57]} 46. Kd1 {[%clk 0:01:10]}  Nb2+ {[%clk 0:00:53]} 47. Kd2 {[%clk 0:01:10]}  Re3+ {[%clk 0:00:48]} 0-1


[Site "https://www.chess.com"]

[Event "Titled Tuesday Blitz August 09 Late 2022"]
[White "Svane, Frederik"]
[Black "Menezes, Christoph"]
[WhiteFideId "12923044"]
[BlackFideId "1617001"]
[WhiteElo "2459"]
[BlackElo "2368"]
[Result "1-0"]
[Round "01"]
[TimeControl "180+1"]
[Date "2022.08.09"]
[WhiteClock "0:01:19"]
[BlackClock "0:00:20"]

1. c4 {[%clk 0:02:59]}  e6 {[%clk 0:02:58]} 2. Nf3 {[%clk 0:02:57]}  d5 {[%clk 0:02:58]} 3. e3 {[%clk 0:02:57]}  Nf6 {[%clk 0:02:57]} 4. b3 {[%clk 0:02:58]}  b6 {[%clk 0:02:45]} 5. Bb2 {[%clk 0:02:57]}  Bb7 {[%clk 0:02:40]} 6. Nc3 {[%clk 0:02:57]}  a6 {[%clk 0:02:36]} 7. d4 {[%clk 0:02:52]}  Nbd7 {[%clk 0:02:28]} 8. Bd3 {[%clk 0:02:50]}  Bd6 {[%clk 0:02:27]} 9. O-O {[%clk 0:02:50]}  O-O {[%clk 0:02:25]} 10. Rc1 {[%clk 0:02:50]}  Qe7 {[%clk 0:02:16]} 11. Re1 {[%clk 0:02:44]}  dxc4 {[%clk 0:02:10]} 12. bxc4 {[%clk 0:02:36]}  e5 {[%clk 0:02:08]} 13. Bb1 {[%clk 0:02:29]}  Rfe8 {[%clk 0:01:57]} 14. d5 {[%clk 0:01:38]}  e4 {[%clk 0:01:47]} 15. Nd4 {[%clk 0:01:38]}  g6 {[%clk 0:01:35]} 16. Nc6 {[%clk 0:01:31]}  Qf8 {[%clk 0:00:57]} 17. Qd4 {[%clk 0:01:25]}  Nc5 {[%clk 0:00:20]} 18. Qxf6 {[%clk 0:01:19]} 1-0


[Site "https://www.chess.com"]

[Event "Titled Tuesday Blitz August 09 Late 2022"]
[White "Terry, Renato"]
[Black "Thorhallsson, Simon"]
[WhiteFideId "3803457"]
[BlackFideId "2310090"]
[WhiteElo "2577"]
[BlackElo "2137"]
[Result "1-0"]
[Round "01"]
[TimeControl "180+1"]
[Date "2022.08.09"]
[WhiteClock "0:02:41"]
[BlackClock "0:02:40"]

1. e4 {[%clk 0:02:56]}  d5 {[%clk 0:02:59]} 2. exd5 {[%clk 0:02:56]}  Qxd5 {[%clk 0:03:00]} 3. Nc3 {[%clk 0:02:55]}  Qd6 {[%clk 0:03:00]} 4. Nb5 {[%clk 0:02:54]}  Qd8 {[%clk 0:02:58]} 5. Bc4 {[%clk 0:02:53]}  c6 {[%clk 0:02:56]} 6. Nc3 {[%clk 0:02:53]}  Nf6 {[%clk 0:02:56]} 7. Nf3 {[%clk 0:02:53]}  Bg4 {[%clk 0:02:55]} 8. Bxf7+ {[%clk 0:02:52]}  Kxf7 {[%clk 0:02:50]} 9. Ne5+ {[%clk 0:02:53]}  Kg8 {[%clk 0:02:47]} 10. Nxg4 {[%clk 0:02:53]}  Nbd7 {[%clk 0:02:46]} 11. Qe2 {[%clk 0:02:46]}  h5 {[%clk 0:02:42]} 12. Qe6+ {[%clk 0:02:41]}  Kh7 {[%clk 0:02:42]} 13. Ne3 {[%clk 0:02:41]}  Nc5 {[%clk 0:02:40]} 14. Qf5+ {[%clk 0:02:41]} 1-0


[Site "https://www.chess.com"]

[Event "Titled Tuesday Blitz August 09 Late 2022"]
[White "Vasquez Schroeder, Rodrigo"]
[Black "Zemach, Roee"]
[WhiteFideId "3400042"]
[BlackFideId "2818531"]
[WhiteElo "2567"]
[BlackElo "2108"]
[Result "1-0"]
[Round "01"]
[TimeControl "180+1"]
[Date "2022.08.09"]
[WhiteClock "0:00:29"]
[BlackClock "0:00:42"]

1. e4 {[%clk 0:03:00]}  c5 {[%clk 0:02:58]} 2. Nf3 {[%clk 0:03:00]}  e6 {[%clk 0:02:58]} 3. d4 {[%clk 0:03:00]}  cxd4 {[%clk 0:02:59]} 4. Nxd4 {[%clk 0:03:01]}  Nc6 {[%clk 0:02:59]} 5. Nb5 {[%clk 0:03:01]}  d6 {[%clk 0:02:59]} 6. c4 {[%clk 0:03:01]}  a6 {[%clk 0:02:58]} 7. N5c3 {[%clk 0:03:01]}  Nf6 {[%clk 0:02:59]} 8. Be2 {[%clk 0:03:01]}  Be7 {[%clk 0:02:59]} 9. O-O {[%clk 0:03:02]}  O-O {[%clk 0:02:59]} 10. Na3 {[%clk 0:03:02]}  Qc7 {[%clk 0:03:00]} 11. Be3 {[%clk 0:03:02]}  Rd8 {[%clk 0:03:00]} 12. Rc1 {[%clk 0:03:03]}  b6 {[%clk 0:02:59]} 13. Nd5 {[%clk 0:02:56]}  exd5 {[%clk 0:02:52]} 14. cxd5 {[%clk 0:02:56]}  Bb7 {[%clk 0:02:47]} 15. dxc6 {[%clk 0:02:51]}  Bxc6 {[%clk 0:02:48]} 16. Qc2 {[%clk 0:02:31]}  Rdc8 {[%clk 0:02:44]} 17. Rfd1 {[%clk 0:02:19]}  Qb7 {[%clk 0:02:37]} 18. f3 {[%clk 0:02:01]}  Bxe4 {[%clk 0:02:35]} 19. Qb3 {[%clk 0:02:01]}  Bd5 {[%clk 0:02:29]} 20. Qxb6 {[%clk 0:02:01]}  Qxb6 {[%clk 0:02:29]} 21. Bxb6 {[%clk 0:02:02]}  Bxa2 {[%clk 0:02:28]} 22. Bd4 {[%clk 0:01:47]}  Bb3 {[%clk 0:02:22]} 23. Re1 {[%clk 0:01:34]}  Rxc1 {[%clk 0:02:11]} 24. Rxc1 {[%clk 0:01:33]}  d5 {[%clk 0:02:12]} 25. Rc7 {[%clk 0:01:27]}  Kf8 {[%clk 0:02:10]} 26. Rc6 {[%clk 0:01:18]}  a5 {[%clk 0:01:58]} 27. Nb5 {[%clk 0:01:18]}  a4 {[%clk 0:01:58]} 28. Nc7 {[%clk 0:01:12]}  Rd8 {[%clk 0:01:57]} 29. Bb5 {[%clk 0:01:05]}  Rd6 {[%clk 0:01:54]} 30. Rc3 {[%clk 0:01:03]}  Rd8 {[%clk 0:01:45]} 31. Rc6 {[%clk 0:01:02]}  Rd6 {[%clk 0:01:41]} 32. Rc3 {[%clk 0:01:01]}  Rd8 {[%clk 0:01:32]} 33. Na6 {[%clk 0:00:57]}  Ne8 {[%clk 0:01:18]} 34. Nc5 {[%clk 0:00:54]}  Nd6 {[%clk 0:01:16]} 35. Bxa4 {[%clk 0:00:50]}  Bxa4 {[%clk 0:01:15]} 36. Nxa4 {[%clk 0:00:51]}  Nb5 {[%clk 0:01:16]} 37. Rd3 {[%clk 0:00:44]}  Ra8 {[%clk 0:01:12]} 38. b3 {[%clk 0:00:43]}  Rxa4 {[%clk 0:01:03]} 39. Bxg7+ {[%clk 0:00:39]}  Kxg7 {[%clk 0:01:04]} 40. bxa4 {[%clk 0:00:40]}  Nc7 {[%clk 0:01:03]} 41. Rc3 {[%clk 0:00:37]}  Na6 {[%clk 0:01:02]} 42. Rc6 {[%clk 0:00:36]}  Nb4 {[%clk 0:01:02]} 43. Rc7 {[%clk 0:00:36]}  Bd6 {[%clk 0:01:01]} 44. Rb7 {[%clk 0:00:36]}  Kf6 {[%clk 0:00:56]} 45. a5 {[%clk 0:00:36]}  Ke6 {[%clk 0:00:54]} 46. Kf1 {[%clk 0:00:35]}  d4 {[%clk 0:00:47]} 47. g3 {[%clk 0:00:33]}  h5 {[%clk 0:00:46]} 48. Rb6 {[%clk 0:00:30]}  Kd7 {[%clk 0:00:42]} 49. a6 {[%clk 0:00:29]}  Bc7 {[%clk 0:00:42]} 50. Rxb4 {[%clk 0:00:29]} 1-0


[Site "https://www.chess.com"]

[Event "Titled Tuesday Blitz August 09 Late 2022"]
[White "Abdrlauf, Elham"]
[Black "Romanchuk, Viktor"]
[WhiteFideId "1533533"]
[BlackFideId "14109271"]
[WhiteElo "2430"]
[BlackElo "2242"]
[Result "0-1"]
[Round "02"]
[TimeControl "180+1"]
[Date "2022.08.09"]
[WhiteClock "0:00:05"]
[BlackClock "0:00:14"]

1. e4 {[%clk 0:03:00]}  e6 {[%clk 0:02:58]} 2. d4 {[%clk 0:03:00]}  d5 {[%clk 0:02:59]} 3. Nc3 {[%clk 0:03:00]}  dxe4 {[%clk 0:02:59]} 4. Nxe4 {[%clk 0:03:00]}  Nd7 {[%clk 0:03:00]} 5. Nf3 {[%clk 0:03:00]}  Ngf6 {[%clk 0:03:01]} 6. Nxf6+ {[%clk 0:03:00]}  Nxf6 {[%clk 0:03:02]} 7. Bd3 {[%clk 0:03:01]}  c5 {[%clk 0:03:02]} 8. dxc5 {[%clk 0:03:02]}  Bxc5 {[%clk 0:03:02]} 9. Qe2 {[%clk 0:03:02]}  O-O {[%clk 0:03:03]} 10. Bg5 {[%clk 0:03:02]}  h6 {[%clk 0:03:03]} 11. h4 {[%clk 0:02:59]}  Qa5+ {[%clk 0:03:03]} 12. c3 {[%clk 0:02:51]}  Ng4 {[%clk 0:02:41]} 13. Be3 {[%clk 0:01:58]}  Bxe3 {[%clk 0:02:12]} 14. fxe3 {[%clk 0:01:59]}  Qb6 {[%clk 0:02:12]} 15. e4 {[%clk 0:01:30]}  e5 {[%clk 0:02:05]} 16. Rf1 {[%clk 0:01:07]}  Be6 {[%clk 0:01:59]} 17. O-O-O {[%clk 0:00:57]}  Bxa2 {[%clk 0:01:34]} 18. Rde1 {[%clk 0:00:42]}  Rad8 {[%clk 0:01:26]} 19. Nd2 {[%clk 0:00:32]}  Be6 {[%clk 0:01:07]} 20. Kb1 {[%clk 0:00:12]}  Rd7 {[%clk 0:00:57]} 21. Nf3 {[%clk 0:00:03]}  Rfd8 {[%clk 0:00:51]} 22. Bc2 {[%clk 0:00:04]}  Qa5 {[%clk 0:00:44]} 23. Rd1 {[%clk 0:00:02]}  Qa2+ {[%clk 0:00:39]} 24. Kc1 {[%clk 0:00:03]}  Qa1+ {[%clk 0:00:37]} 25. Bb1 {[%clk 0:00:04]}  Ba2 {[%clk 0:00:36]} 26. Kc2 {[%clk 0:00:04]}  Rxd1 {[%clk 0:00:30]} 27. Rxd1 {[%clk 0:00:04]}  Rxd1 {[%clk 0:00:28]} 28. Bxa2 {[%clk 0:00:05]}  Qxa2 {[%clk 0:00:20]} 29. Kxd1 {[%clk 0:00:04]}  Qb1+ {[%clk 0:00:20]} 30. Kd2 {[%clk 0:00:05]}  Qxb2+ {[%clk 0:00:21]} 31. Ke1 {[%clk 0:00:05]}  Qxc3+ {[%clk 0:00:20]} 32. Nd2 {[%clk 0:00:05]}  Qe3 {[%clk 0:00:19]} 33. Nc4 {[%clk 0:00:05]}  Qxe2+ {[%clk 0:00:17]} 34. Kxe2 {[%clk 0:00:06]}  Kf8 {[%clk 0:00:17]} 35. Nd6 {[%clk 0:00:06]}  a5 {[%clk 0:00:15]} 36. Nc4 {[%clk 0:00:02]}  a4 {[%clk 0:00:14]} 37. Na3 {[%clk 0:00:02]}  Ke7 {[%clk 0:00:14]} 38. Kf3 {[%clk 0:00:02]}  h5 {[%clk 0:00:14]} 39. Nb5 {[%clk 0:00:03]}  Kd7 {[%clk 0:00:14]} 40. g3 {[%clk 0:00:04]}  Kc6 {[%clk 0:00:14]} 41. Na3 {[%clk 0:00:04]}  b5 {[%clk 0:00:14]} 42. Nc2 {[%clk 0:00:05]}  Kc5 {[%clk 0:00:14]} 43. Ne1 {[%clk 0:00:06]}  Kc4 {[%clk 0:00:14]} 44. Nc2 {[%clk 0:00:06]}  b4 {[%clk 0:00:14]} 45. Ne1 {[%clk 0:00:05]}  b3 {[%clk 0:00:14]} 0-1


[Site "https://www.chess.com"]

[Event "Titled Tuesday Blitz August 09 Late 2022"]
[White "Aggelis, Nikolaos"]
[Black "Zhigalko, Sergei"]
[WhiteFideId "4213220"]
[BlackFideId "13502956"]
[WhiteElo "2154"]
[BlackElo "2662"]
[Result "0-1"]
[Round "02"]
[TimeControl "180+1"]
[Date "2022.08.09"]
[WhiteClock "0:00:04"]
[BlackClock "0:00:08"]

1. d4 {[%clk 0:03:00]}  Nf6 {[%clk 0:02:59]} 2. g3 {[%clk 0:03:00]}  c5 {[%clk 0:02:37]} 3. d5 {[%clk 0:03:01]}  e6 {[%clk 0:02:37]} 4. Nc3 {[%clk 0:02:59]}  b5 {[%clk 0:02:33]} 5. Bg2 {[%clk 0:02:52]}  Bb7 {[%clk 0:02:29]} 6. e4 {[%clk 0:02:42]}  b4 {[%clk 0:02:28]} 7. e5 {[%clk 0:02:42]}  bxc3 {[%clk 0:02:25]} 8. exf6 {[%clk 0:02:42]}  Qxf6 {[%clk 0:02:23]} 9. Rb1 {[%clk 0:02:40]}  Bxd5 {[%clk 0:01:57]} 10. Bxd5 {[%clk 0:02:38]}  exd5 {[%clk 0:01:44]} 11. Qxd5 {[%clk 0:02:37]}  Nc6 {[%clk 0:01:44]} 12. Ne2 {[%clk 0:02:33]}  Qe6 {[%clk 0:01:17]} 13. Qxe6+ {[%clk 0:02:21]}  fxe6 {[%clk 0:01:14]} 14. Nxc3 {[%clk 0:02:20]}  d5 {[%clk 0:01:10]} 15. O-O {[%clk 0:02:19]}  Nd4 {[%clk 0:01:05]} 16. Bf4 {[%clk 0:02:15]}  Nxc2 {[%clk 0:00:59]} 17. Nb5 {[%clk 0:02:11]}  Kd7 {[%clk 0:00:58]} 18. Rfd1 {[%clk 0:01:51]}  a6 {[%clk 0:00:49]} 19. Nc3 {[%clk 0:01:22]}  Nd4 {[%clk 0:00:37]} 20. Be3 {[%clk 0:01:17]}  Nf5 {[%clk 0:00:31]} 21. Bf4 {[%clk 0:01:08]}  Bd6 {[%clk 0:00:26]} 22. Bxd6 {[%clk 0:00:56]}  Nxd6 {[%clk 0:00:21]} 23. Na4 {[%clk 0:00:56]}  Kc6 {[%clk 0:00:15]} 24. Re1 {[%clk 0:00:43]}  Rhe8 {[%clk 0:00:14]} 25. b3 {[%clk 0:00:39]}  Rab8 {[%clk 0:00:13]} 26. Rbc1 {[%clk 0:00:39]}  c4 {[%clk 0:00:13]} 27. bxc4 {[%clk 0:00:27]}  Nxc4 {[%clk 0:00:14]} 28. Re2 {[%clk 0:00:27]}  Rb4 {[%clk 0:00:09]} 29. Nb2 {[%clk 0:00:26]}  Kd6 {[%clk 0:00:06]} 30. Nd3 {[%clk 0:00:24]}  Rb7 {[%clk 0:00:05]} 31. f4 {[%clk 0:00:22]}  a5 {[%clk 0:00:03]} 32. Rce1 {[%clk 0:00:21]}  g6 {[%clk 0:00:03]} 33. Kg2 {[%clk 0:00:20]}  a4 {[%clk 0:00:03]} 34. h4 {[%clk 0:00:19]}  a3 {[%clk 0:00:03]} 35. h5 {[%clk 0:00:19]}  gxh5 {[%clk 0:00:04]} 36. Rh1 {[%clk 0:00:19]}  h4 {[%clk 0:00:03]} 37. Rxh4 {[%clk 0:00:19]}  Rb2 {[%clk 0:00:02]} 38. Nxb2 {[%clk 0:00:17]}  axb2 {[%clk 0:00:03]} 39. Rh1 {[%clk 0:00:17]}  Ra8 {[%clk 0:00:03]} 40. Rb1 {[%clk 0:00:11]}  Rxa2 {[%clk 0:00:03]} 41. Kf3 {[%clk 0:00:12]}  Kc5 {[%clk 0:00:03]} 42. Kf2 {[%clk 0:00:08]}  Kd4 {[%clk 0:00:04]} 43. Rc2 {[%clk 0:00:07]}  Kd3 {[%clk 0:00:03]} 44. Re2 {[%clk 0:00:05]}  Kc3 {[%clk 0:00:04]} 45. Kf3 {[%clk 0:00:02]}  Nd2+ {[%clk 0:00:03]} 46. Rxd2 {[%clk 0:00:02]}  Kxd2 {[%clk 0:00:04]} 47. g4 {[%clk 0:00:01]}  Kc2 {[%clk 0:00:05]} 48. Re1 {[%clk 0:00:02]}  b1=Q {[%clk 0:00:05]} 49. Rxb1 {[%clk 0:00:02]}  Kxb1 {[%clk 0:00:06]} 50. f5 {[%clk 0:00:03]}  exf5 {[%clk 0:00:07]} 51. Kf4 {[%clk 0:00:03]}  fxg4 {[%clk 0:00:07]} 52. Kxg4 {[%clk 0:00:04]}  d4 {[%clk 0:00:08]} 0-1


[Site "https://www.chess.com"]

[Event "Titled Tuesday Blitz August 09 Late 2022"]
[White "Arias, Juan Cruz"]
[Black "Livaic, Leon"]
[WhiteFideId "118540"]
[BlackFideId "14531534"]
[WhiteElo "2091"]
[BlackElo "2540"]
[Result "0-1"]
[Round "02"]
[TimeControl "180+1"]
[Date "2022.08.09"]
[WhiteClock "0:00:46"]
[BlackClock "0:00:53"]

1. e4 {[%clk 0:03:00]}  e6 {[%clk 0:02:58]} 2. d4 {[%clk 0:02:59]}  d5 {[%clk 0:02:58]} 3. Nd2 {[%clk 0:03:00]}  c5 {[%clk 0:02:58]} 4. exd5 {[%clk 0:02:59]}  Qxd5 {[%clk 0:02:58]} 5. Ngf3 {[%clk 0:03:00]}  cxd4 {[%clk 0:02:59]} 6. Bc4 {[%clk 0:02:59]}  Qd7 {[%clk 0:02:59]} 7. Qe2 {[%clk 0:02:58]}  Nc6 {[%clk 0:02:59]} 8. O-O {[%clk 0:02:58]}  Nf6 {[%clk 0:02:57]} 9. Nb3 {[%clk 0:02:57]}  a6 {[%clk 0:02:56]} 10. a4 {[%clk 0:02:54]}  Qc7 {[%clk 0:02:56]} 11. Rd1 {[%clk 0:02:53]}  Bd7 {[%clk 0:02:55]} 12. Nbxd4 {[%clk 0:02:53]}  Nxd4 {[%clk 0:02:55]} 13. Nxd4 {[%clk 0:02:52]}  Be7 {[%clk 0:02:55]} 14. Bg5 {[%clk 0:02:49]}  O-O {[%clk 0:02:54]} 15. c3 {[%clk 0:02:45]}  Rfe8 {[%clk 0:02:47]} 16. Bd3 {[%clk 0:02:44]}  h6 {[%clk 0:02:39]} 17. Bh4 {[%clk 0:02:40]}  Rad8 {[%clk 0:02:27]} 18. a5 {[%clk 0:02:32]}  Nd5 {[%clk 0:01:56]} 19. Bg3 {[%clk 0:02:29]}  Bd6 {[%clk 0:01:50]} 20. Qe4 {[%clk 0:02:25]}  Nf6 {[%clk 0:01:41]} 21. Bxd6 {[%clk 0:02:21]}  Qxd6 {[%clk 0:01:41]} 22. Qxb7 {[%clk 0:02:19]}  e5 {[%clk 0:01:38]} 23. Ne2 {[%clk 0:02:07]}  Bf5 {[%clk 0:01:25]} 24. Bc2 {[%clk 0:01:54]}  Qe6 {[%clk 0:01:25]} 25. Bxf5 {[%clk 0:01:52]}  Rxd1+ {[%clk 0:01:23]} 26. Rxd1 {[%clk 0:01:52]}  Qxf5 {[%clk 0:01:24]} 27. Qxa6 {[%clk 0:01:47]}  e4 {[%clk 0:01:21]} 28. Ng3 {[%clk 0:01:46]}  Qf4 {[%clk 0:01:17]} 29. Qe2 {[%clk 0:01:44]}  e3 {[%clk 0:01:13]} 30. fxe3 {[%clk 0:01:42]}  Rxe3 {[%clk 0:01:14]} 31. Qf2 {[%clk 0:01:40]}  Qe5 {[%clk 0:01:14]} 32. a6 {[%clk 0:01:34]}  Ng4 {[%clk 0:01:14]} 33. Rd8+ {[%clk 0:01:33]}  Kh7 {[%clk 0:01:14]} 34. Qc2+ {[%clk 0:01:10]}  g6 {[%clk 0:01:14]} 35. Rd1 {[%clk 0:00:54]}  Rxg3 {[%clk 0:01:02]} 36. hxg3 {[%clk 0:00:52]}  Qe3+ {[%clk 0:00:58]} 37. Kh1 {[%clk 0:00:53]}  Qxg3 {[%clk 0:00:55]} 38. Kg1 {[%clk 0:00:47]}  Qh2+ {[%clk 0:00:53]} 39. Kf1 {[%clk 0:00:46]}  Ne3+ {[%clk 0:00:53]} 0-1


[Site "https://www.chess.com"]